Cogmind - Beta 16.1 @@@ ROGUE MODE // 2026.01.05 @ 07:21:45 Player: H3-MLN Result: Destroyed by H-55 Commando with Assault Rifle Performance ------------- Evolutions (0) 0 Regions Visited (3) 600 Robots Destroyed (47) 235 Value Destroyed (1282) 1282 Prototype IDs (37) 740 Alien Tech Used (0) 0 Bonus (484) 484 TOTAL SCORE: 3341 Bonus ------- Follower Combat Kills 184 Aligned with FarCom 300 Cogmind --------- Core Integrity 0/250 Matter 300/300 Energy 100/100 System Corruption 7% Temperature Cool (0) Movement Hovering (80) Location -10/Exiles Parts ------- > --- POWER (1) -------- (None) > --- PROPULSION (2) --- Combat Airjet > --- UTILITY (2) ------ Seismic Detector (fused) > --- WEAPON (2) ------- Mini Grenade Launcher > --- INVENTORY (5) ---- Huge Storage Unit Structural Scanner 0b10 Alert Chip Hacking Suite Mining Laser Peak State ------------ > --- POWER ------------ Ion Engine > --- PROPULSION ------- Light Treads Wheel > --- UTILITY ---------- Huge Storage Unit Light Armor Plating > --- WEAPON ----------- Light Cannon Battle Cannon > --- INVENTORY -------- Reinforced Deuterium Engine Fission Core Light Treads Combat Airjet Large Storage Unit High-capacity Matter Pod Structural Scanner Seismic Detector 0b10 Alert Chip Hacking Suite Grenade Launcher Mini Grenade Launcher Datajack Mining Laser [Rating: 11] Favorites ----------- Power Ion Engine Engine Ion Engine Propulsion Light Treads Treads Light Treads Wheel Wheel Hover Unit Combat Airjet Utility Light Armor Plating Device Seismic Detector Storage Huge Storage Unit Protection Light Armor Plating Weapon Assault Rifle Ballistic Gun Assault Rifle Ballistic Cannon Battle Cannon Launcher Mini Grenade Launcher Special Melee Weapon Datajack Build | -11 -10 -10 -10 ------- Run | Yrd Mat Min Exi Slots Evolved . | . . . . Power . | . . . . Propulsion . | . . . . Utility . | . . . . Weapon . | . . . . Parts Attached 25 | 8 9 3 5 Power 3 | 2 1 . . Engine 3 | 2 1 . . Core . | . . . . Reactor . | . . . . Propulsion 8 | 2 4 . 2 Treads 4 | 1 2 . 1 Leg . | . . . . Wheel 3 | 1 2 . . Hover 1 | . . . 1 Flight . | . . . . Utility 7 | 2 3 2 . Device 2 | 1 1 . . Storage 4 | 1 2 1 . Processor . | . . . . Hackware . | . . . . Protection 1 | . . 1 . Artifact . | . . . . Weapon 7 | 2 1 1 3 Energy Gun . | . . . . Energy Cannon . | . . . . Ballistic Gun 2 | 2 . . . Ballistic Cannon 2 | . . 1 1 Launcher 2 | . 1 . 1 Special Weapon . | . . . . Impact Weapon . | . . . . Slashing Weapon . | . . . . Piercing Weapon . | . . . . Special Melee Weapon 1 | . . . 1 Unidentified Prototypes . | . . . . Parts Lost 10 | . 2 . 8 Power 2 | . 1 . 1 Propulsion 4 | . 1 . 3 Utility 1 | . . . 1 Weapon 3 | . . . 3 Highest Loss Streak 7 | . 2 . 7 To Critical Strikes . | . . . . Average Backups 12 | 3 8 15 14 Power . | . . . 1 Propulsion 2 | 1 2 3 1 Utility 6 | . 3 7 6 Weapon 3 | . 2 3 3 Tool/Special . | . . . . Unused Backups 13 | . 1 . 12 Power 2 | . . . 2 Propulsion 1 | . 1 . . Utility 8 | . . . 8 Weapon 2 | . . . 2 Tool/Special . | . . . . Average Slot Usage (%) 91 | . 99 100 77 Engine 12 | . 14 14 9 Treads 12 | . 14 14 10 Wheel 12 | . 13 14 9 Hover 1 | . . . 4 Device 6 | . 14 1 4 Storage 12 | . 14 14 10 Protection 7 | . . 12 9 Ballistic Gun 14 | . 27 18 . Ballistic Cannon 6 | . . 9 7 Launcher 1 | . . . 4 Special Melee Weapon 2 | . . . 8 Peak Build Rating 11 | 8 9 10 11 Average Rating 9 | 5 8 9 9 On Entrance 6 | . 8 9 8 Avg Prop Armor Cover (%) 10 | 16 12 8 11 Naked Turns . | . . . . Heaviest Build 94 | 14 29 93 94 Greatest Support 40 | 10 16 10 40 Greatest Overweight (x) 9 | 1 2 9 9 Average Overweight (x) 4 | . 1 5 6 Largest Inventory Capacity 25 | 8 15 25 25 Average Capacity 17 | 6 11 20 18 Most Carried 22 | 6 15 20 22 Average Carried 13 | 4 9 16 14 Final Capacity 25 | 8 15 25 5 Final Carried 20 | 5 15 20 5 Class Distribution -------------------- 98% | Mutant Dominant Class ---------------- Mutant | -10/Materials Mutant | -10/Mines Mutant | -10/Exiles Resources | -11 -10 -10 -10 ----------- Run | Yrd Mat Min Exi Matter Collected 1516 | 293 497 260 466 Remotely . | . . . . Salvage Created 1315 | 117 569 170 459 Parts 84 | 6 38 15 25 Haulers Intercepted 2 | . 2 . . Recyclers Shooed . | . . . . Parts Field Recycled . | . . . . Retrieved Matter . | . . . . Parts Self-Destructed . | . . . . Prevented . | . . . . Parts Restored . | . . . . Kills | -11 -10 -10 -10 ------- Run | Yrd Mat Min Exi Combat Hostiles Destroyed 35 | . 11 5 19 Guns 7 | . 5 2 . Cannons 4 | . . . 4 AOE 24 | . 6 3 15 Classes Destroyed 11 | 2 6 . 3 Worker 2 | . 2 . . Tunneler 2 | 1 1 . . Hauler 2 | . 2 . . Recycler 4 | 1 2 1 . Operator 1 | . 1 . . Watcher 1 | . 1 . . Swarmer 9 | . 6 3 . Grunt 17 | . 5 2 10 Duelist 1 | . . . 1 Hunter 5 | . . . 5 Programmer 3 | . . . 3 Best Kill Streak 18 | 2 4 4 18 Combat Bots Only 18 | . 3 3 18 Max Kills in Single Turn 4 | 1 3 2 4 Gunslinging 1 | . . 1 . Exploded 4 | . 3 2 4 Melee . | . . . . Uniques/NPCs Destroyed . | . . . . Combat | -11 -10 -10 -10 -------- Run | Yrd Mat Min Exi Hostile Shots Fired 150 | . 32 18 100 Missed 58 | . 11 4 43 Hits 92 | . 21 14 57 Melee 1 | . . . 1 Projectile 91 | . 21 14 56 Part Disruptions 1 | . . . 1 Damage Taken 1404 | . 348 197 859 Core 257 | . 28 55 174 Absorbed by Shields . | . . . . Core Remaining (%) 100 | 100 . . . Volleys Fired 117 | 4 63 12 38 Largest 2 | 2 2 2 2 Hottest 63 | 40 40 40 63 Shots Fired 210 | 7 121 23 59 Gun 144 | 7 116 21 . Cannon 46 | . . . 46 Launcher 20 | . 5 2 13 Special . | . . . . Kinetic 190 | 7 116 21 46 Thermal . | . . . . Explosive 20 | . 5 2 13 Electromagnetic . | . . . . Robot Hit Streak 14 | 6 14 6 7 Robot Miss Streak 5 | . 5 1 5 Penetration Max . | . . . . Secondary Targets 2 | . 1 1 . Max Gunslinging Chain 1 | . 1 1 . Shots Hit Robots 115 | 6 73 14 22 Core Hits 96 | 5 36 12 43 Critical Kills . | . . . . Critical Parts Destroyed 1 | . 1 . . Critical Strikes 3 | . 1 . 2 Destroy 1 | . 1 . . Blast 2 | . . . 2 Melee Attacks 4 | . . . 4 Impact . | . . . . Slashing . | . . . . Piercing . | . . . . Sneak Attacks 4 | . . . 4 Combat Hostiles . | . . . . Follow-up Attacks . | . . . . Damage Inflicted 2872 | 56 1095 232 1489 Guns 975 | 56 778 141 . Cannons 446 | . . . 446 Explosions 1451 | . 317 91 1043 Melee . | . . . . Ramming . | . . . . Kinetic 1421 | 56 778 141 446 Thermal . | . . . . Explosive 1451 | . 317 91 1043 Electromagnetic . | . . . . Impact . | . . . . Slashing . | . . . . Piercing . | . . . . Highest Corruption 7 | . 2 2 7 Average Corruption 2 | . 2 2 3 Corruption Purged . | . . . . Corruption Blocked . | . . . . Effects 31 | . 4 14 13 Message Errors 7 | . . 3 4 Matter Fused 10 | . 3 4 3 Heat Flow Errors 4 | . 1 1 2 Energy Discharges 3 | . . 2 1 Parts Rejected 1 | . . . 1 Parts Fused 1 | . . . 1 Data Loss (minor) 1 | . . 1 . Data Loss (major) 2 | . . 1 1 Misfires 1 | . . 1 . Alerts 1 | . . 1 . Overload Shots . | . . . . Overflow Damage 35 | . 35 . . Projectiles . | . . . . Explosions 35 | . 35 . . Melee . | . . . . Knockbacks . | . . . . Impact . | . . . . Kinetic . | . . . . Secondary . | . . . . Self-Inflicted Damage 88 | . 88 . . Shots 3 | . 3 . . Rammed . | . . . . Targets Rammed . | . . . . Kicked . | . . . . Crushed . | . . . . Highest Temperature 274 | . 109 188 274 Average Temperature 53 | . 20 38 70 Received Heat Transfer 255 | . 99 96 60 Siege Activations . | . . . . Martial Activations . | . . . . Shielding Activations . | . . . . Robots Disrupted . | . . . . Combat Hostiles . | . . . . Robots Corrupted . | . . . . Combat Hostiles . | . . . . Parts Fried . | . . . . Impact Corruptions . | . . . . Robots Melted . | . . . . Combat Hostiles . | . . . . Parts Melted . | . . . . Heat Transferred . | . . . . Parts Sabotaged . | . . . . Parts Stolen . | . . . . Parts Stripped . | . . . . Power Chain Reactions . | . . . . Alert | -11 -10 -10 -10 ------- Run | Yrd Mat Min Exi Maximum Alert Level . | . . . . Low Security (%) 100 | 100 100 100 . Level 1 . | . . . . Level 2 . | . . . . Level 3 . | . . . . Level 4 . | . . . . Level 5 . | . . . . High Security . | . . . . Max Security . | . . . . Peak Influence 195 | 10 195 108 . Initial 12 | . . 12 . Average 54 | 1 106 18 . Influence Increases 1091 | 10 383 148 550 Destroy 0b10 Robot/C 820 | . 220 100 500 Destroy 0b10 Robot/NC 60 | 10 45 5 . Destroy Leader 66 | . 46 20 . Allied During Kill 64 | . . 14 50 Successful Hack 33 | . 33 . . Disable Machine 15 | . 15 . . Destroy Structure 33 | . 24 9 . Influence Decreases 791 | 10 352 179 250 Entered New Map 19 | . . 19 . Time Decay 652 | 10 332 160 150 Lost Part 100 | . 20 . 80 Lost Ally 20 | . . . 20 Squads Dispatched 1 | . 1 . . Investigation . | . . . . Extermination . | . . . . Reinforcement 1 | . 1 . . Assault . | . . . . Garrison . | . . . . Intercept . | . . . . Searches Triggered . | . . . . Construction Impeded . | . . . . Haulers Reinforced . | . . . . Active Scanning Responses . | . . . . Cargo Convoy Interrupts . | . . . . Stealth | -11 -10 -10 -10 --------- Run | Yrd Mat Min Exi Distress Signals 2 | . 2 . . Communications Jammed . | . . . . Distress Signals . | . . . . Times Spotted 58 | . 23 5 30 Peak Tracking Total 11 | . 5 3 11 Tactical Retreats . | . . . . Traps | -11 -10 -10 -10 ------- Run | Yrd Mat Min Exi Traps Triggered 2 | . 2 . . Indirectly . | . . . . Trap Hack Attempts . | . . . . Triggered . | . . . . Disarmed . | . . . . Reprogrammed . | . . . . Reused . | . . . . Traps Extracted . | . . . . Installed . | . . . . Triggered . | . . . . Machines | -11 -10 -10 -10 ---------- Run | Yrd Mat Min Exi Machines Disabled 5 | . 1 . 4 Max in Single Turn 1 | . 1 . 1 Machines Repaired . | . . . . Machines Dismantled . | . . . . Machines Sabotaged . | . . . . Overloaded Fab Kills . | . . . . Hacking | -11 -10 -10 -10 --------- Run | Yrd Mat Min Exi Machines Accessed 8 | . 5 1 2 Terminals 5 | . 4 1 . Fabricators . | . . . . Repair Stations . | . . . . Recycling Units 1 | . 1 . . Scanalyzers . | . . . . Garrison Access . | . . . . Total Hacks 22 | . 15 2 5 Successful 11 | . 6 . 5 Failed 11 | . 9 2 . Catastrophic 2 | . 1 1 . Database Lockouts . | . . . . Manual 17 | . 14 2 1 Terminals 13 | . 11 2 . Fabricators . | . . . . Repair Stations . | . . . . Recycling Units 4 | . 4 . . Scanalyzers . | . . . . Garrison Access . | . . . . Terminal Hacks 10 | . 5 . 5 Record 4 | . . . 4 Part Schematic 1 | . 1 . . Robot Analysis 2 | . 2 . . Locate Traps 1 | . 1 . . Registered Components 1 | . 1 . . Proto ID Catalog 1 | . . . 1 Fabricator Hacks . | . . . . Repair Station Hacks . | . . . . Recycling Unit Hacks . | . . . . Scanalyzer . | . . . . Garrison Access Hacks . | . . . . Unauthorized Hacks 1 | . 1 . . Terminals . | . . . . Fabricators . | . . . . Repair Stations . | . . . . Recycling Units 1 | . 1 . . Mask 1 | . 1 . . Scanalyzers . | . . . . Garrison Access . | . . . . Data Cores Recovered . | . . . . Used . | . . . . Hacking Detections 6 | . 5 1 . Full Trace Events . | . . . . Feedback Events . | . . . . Feedback Blocked . | . . . . Robot Schematics Acquired . | . . . . Robots Built . | . . . . Authchips . | . . . . Time . | . . . . Total Robot Build Rating . | . . . . Part Schematics Acquired 1 | . 1 . . Parts Built . | . . . . Authchips . | . . . . Time . | . . . . Total Part Build Rating . | . . . . Part Studies Acquired . | . . . . Parts Repaired . | . . . . Time . | . . . . Parts Recycled . | . . . . Recycled Matter . | . . . . Retrieved Matter . | . . . . Retrieved Components . | . . . . Parts Scanalyzed . | . . . . Part Schematics Acquired . | . . . . Parts Damaged . | . . . . Bothacking | -11 -10 -10 -10 ------------ Run | Yrd Mat Min Exi Used RIF Installer . | . . . . Robots Hacked 4 | . . . 4 Non-combat 3 | . . . 3 Combat 1 | . . . 1 Robot Hacks Applied 4 | . . . 4 parse_system 4 | . . . 4 Relay Couplers Released . | . . . . Fabnet Peak Effective % . | . . . . Robots Rewired . | . . . . Allies Hacked . | . . . . Hacks Repelled . | . . . . Allies | -11 -10 -10 -10 -------- Run | Yrd Mat Min Exi Total Allies 3 | . . 2 1 Largest Group 2 | . . 2 2 Highest-Rated Group 43 | . . 42 43 Highest-Rated Ally 43 | . . 31 43 Total Orders . | . . . . Ally Attacks 31 | . . 4 27 Total Damage 738 | . . 43 695 Kills 6 | . . . 6 Allies Corrupted . | . . . . Allies Melted . | . . . . Intel | -11 -10 -10 -10 ------- Run | Yrd Mat Min Exi Active Infowar (turns) 1242 | 19 772 117 334 Seismic 1242 | 19 772 117 334 Robot Analysis Total 2 | . 2 . . Derelict Logs Recovered 1 | . . 1 . Drone Launches . | . . . . Drone Recoveries . | . . . . Exploration | -11 -10 -10 -10 ------------- Run | Yrd Mat Min Exi Turns Passed 2834 | 76 772 1017 969 Spaces Moved 1527 | 55 518 595 359 Core 4 | 4 . . . Treads 5 | . . . 5 Legs . | . . . . Wheels 1436 | 51 518 595 272 Hover 82 | . . . 82 Flight . | . . . . Fastest Speed 50 | 50 95 110 80 Average Speed 141 | 86 102 162 172 Slowest Speed 215 | 95 115 215 215 Overloaded Moves . | . . . . Propulsion Burnouts . | . . . . Robots Hopped . | . . . . Potential Cave-ins . | . . . . Cave-ins Triggered . | . . . . Exploration Rate (%) 54 | 3 56 99 60 Regions Visited 3 Branch Regions 2 Pre-discovered Areas 2 | . . 1 1 Known Exits Taken . | . . . . Unknown Exits Taken 3 | 1 1 1 . Scrap Searched 2 | . . 2 . Spaces Dug 22 | . 22 . . Terrain Destroyed 42 | . 30 11 1 Melee . | . . . . Projectile 1 | . . . 1 AOE 41 | . 30 11 . Terrain Rammed . | . . . . Walls Destroyed . | . . . . Machines Disabled . | . . . . Actions | -11 -10 -10 -10 --------- Run | Yrd Mat Min Exi Total 1999 | 75 647 626 651 Wait 261 | 2 34 8 217 Move 1524 | 54 517 594 359 Hop . | . . . . Pick Up 27 | 6 13 3 5 Fast Attach 7 | 5 . 1 1 Attach 11 | 2 2 . 7 Detach 2 | . . 2 . Swap 22 | 1 11 4 6 Drop 24 | 1 7 2 14 Fire 117 | 4 63 12 38 Melee 4 | . . . 4 Ram . | . . . . Kick . | . . . . Crush . | . . . . Escape Stasis . | . . . . Rewire . | . . . . Trap . | . . . . Miscellaneous . | . . . . Route ------- -11/Scrapyard -10/Materials (discovered 3 exits: [*Mat x2] / *Min) -10/Mines (discovered 4 exits: [*Mat x2] / *Exi / [*Sub]) -10/Exiles History --------- Turn | Location | Event 10 | -11/Scrapyard | Discovered new exit (range 15) 77 | -11/Scrapyard | Entered Materials 150 | -10/Materials | Discovered new exit (range 5) 307 | -10/Materials | Discovered new exit (range 15) 323 | -10/Materials | Build established: Mutant 523 | -10/Materials | Discovered new exit (range 15) 849 | -10/Materials | Entered Mines 1015 | -10/Mines | Discovered new exit (range 9) 1161 | -10/Mines | A weapon hastily lodged in a ceiling crevice suddenly fell to the ground 1240 | -10/Mines | Deemed a non-threat by the Exiles lab entrance 1240 | -10/Mines | Discovered new exit (range 5) 1404 | -10/Mines | Learned location of Storage (-7) 1461 | -10/Mines | Discovered new exit (range 6) 1494 | -10/Mines | Discovered new exit (range 6) 1866 | -10/Mines | Entered Exiles 1866 | -10/Exiles | Accompanied by 2 allies 1896 | -10/Exiles | Led the pair of lost Derelicts to a safe place 1917 | -10/Exiles | Met 8R-AWN 1983 | -10/Exiles | Met EX-HEX 2058 | -10/Exiles | Met EX-DEC 2112 | -10/Exiles | Learned location of Zion (-6) 2160 | -10/Exiles | Met EX-BIN 2185 | -10/Exiles | Aligned with FarCom system 2187 | -10/Exiles | Given EX-Vault access code 2241 | -10/Exiles | Opened EX-Vault 2253 | -10/Exiles | Found 0b10 Alert Chip 2296 | -10/Exiles | Warned to stay clear of 0b10 Research branches 2323 | -10/Exiles | Exiles lab attacked by MAIN.C 2344 | -10/Exiles | Botcube activated 2364 | -10/Exiles | Botcube completed mutation into treaded form, armed with 2 guns. 2470 | -10/Exiles | Core integrity fell below 50% 2546 | -10/Exiles | Core integrity fell below 20% 2571 | -10/Exiles | Destroyed 18 combat bots 2572 | -10/Exiles | Lost 7 parts (1p3n1u2w) 2835 | -10/Exiles | Destroyed by H-55 Commando with Assault Rifle Last Messages --------------- 02566_ B-36 Bruiser destroyed. 02569_ Slug penetrates Wall. 02572_ Slug penetrates VI-K11(g). 02581_ Acquired 15 matter. 02584_ Acquired 4 matter. 02605_ O0HTRCY|O19DKEV%FHIX8A|REA|SEAVOA9Z<8U 02636_ System corrupted: Seismic Detector fused. 02651_ System corrupted: Matter fused (-5). 02668_ System corrupted: Matter fused (-7). 02711_ System corrupted: Substantial component data lost. 02738_ System corrupted: Matter fused (-10). 02740_ Slug penetrates DAS Turret. 02759_ Slug penetrates Machine. 02762_ Slug penetrates DAS Turret. 02811_ Q8#0 9IRX 3R|XOWWQ#AWWC>VBB